bitfinex/quotes_ETHUSD_20250328
["timestamp","ask_amount","ask_price","bid_price","bid_amount"]
[1743181583719,5.264,1872.6,1872.4,5.34063]
[1743181584718,5.264,1872.6,1872.4,5.34058]
[1743181585028,5.264,1872.6,1872.5,5.34045]
[1743181585205,5.264,1872.6,1872.3,5.34098]
[1743181585408,10.60428,1872.6,1872.3,5.34098]
[1743181585625,5.264,1872.6,1872.4,5.34072]
[1743181586133,11.3239823,1872.6,1872.4,5.34072]
[1743181586431,11.3239823,1872.6,1872.4,5.34065]
[1743181586922,11.3239823,1872.6,1872.5,5.34045]
[1743181587103,11.3239823,1872.6,1872.4,5.34065]
[1743181587449,11.3239823,1872.6,1872.4,5.34058]
[1743181588531,11.3239823,1872.6,1872.5,5.34045]
[1743181590004,11.3239823,1872.6,1872.4,5.34056]
[1743181590206,11.3239823,1872.6,1872.4,10.68121]
[1743181590732,11.3239823,1872.6,1872.5,5.34045]
[1743181590939,11.3239823,1872.6,1872.4,5.34056]
[1743181591106,11.3239823,1872.6,1872.5,5.34045]
[1743181591714,11.3239823,1872.6,1872.4,5.34056]
[1743181591917,11.3239823,1872.6,1872.5,5.34045]
[1743181595140,6.0599823,1872.6,1872.5,7.225751]
[1743181596037,28.268,1873.0,1872.9,6.10321]
[1743181596803,6.0599823,1873.4,1873.3,5.33817]
[1743181597037,6.0599823,1873.4,1873.3,6.11027]
[1743181597537,6.0599823,1873.4,1873.3,5.33817]
[1743181597723,6.0599823,1873.4,1873.1,6.11074]
[1743181597923,5.33818,1873.3,1873.0,5.33899]
[1743181598246,11.3978823,1873.4,1873.1,5.33873]
[1743181598419,16.7359623,1873.4,1873.0,5.33883]
[1743181598804,11.3978823,1873.4,1873.0,5.33883]
[1743181599140,11.3978823,1873.4,1872.9,6.14597]
[1743181599141,9.91579821,1873.4,1872.9,6.14597]
[1743181599438,5.33848,1873.2,1872.9,6.14597]
[1743181599738,10.60043,1873.3,1872.9,6.14584]
[1743181600335,10.60035,1873.3,1872.9,6.14584]
[1743181600638,1.06766062,1873.1,1872.9,6.14584]
[1743181601061,1.06766062,1873.1,1873.0,5.39240871]
[1743181601209,1.06766062,1873.1,1872.9,6.760424]
[1743181601624,1.06766062,1873.1,1872.9,12.099614]
[1743181601832,1.06766062,1873.1,1872.9,6.14584]
[1743181602031,1.06766062,1873.1,1872.9,11.48494]
[1743181602206,1.06766062,1873.1,1872.9,6.1458]
[1743181602816,1.06766062,1873.1,1872.9,11.48494]
[1743181603017,1.06766062,1873.1,1872.9,6.1458]
[1743181603625,1.06766062,1873.1,1872.9,10.67827]
[1743181604164,1.06766062,1873.1,1872.9,5.3391]
[1743181604318,1.06766062,1873.1,1872.9,10.67825]
[1743181604516,1.06766062,1873.1,1872.9,10.67828]
[1743181604822,1.06766062,1873.1,1872.9,5.3391]
[1743181605015,1.06766062,1873.1,1872.9,10.67824]
[1743181605215,1.06766062,1873.1,1873.0,5.33902]
[1743181605611,1.06766062,1873.1,1872.9,10.6783]
[1743181605816,1.06766062,1873.1,1872.9,5.3391]
[1743181606045,1.06766062,1873.1,1873.0,5.33902]
[1743181606360,5.262,1873.3,1873.0,11.44831]
[1743181606641,1.0676789,1873.2,1873.0,0.7704]
[1743181607747,1.0676789,1873.2,1873.0,11.44821]
[1743181607947,1.0676789,1873.2,1873.1,5.33874]
[1743181608160,6.0599823,1873.4,1873.3,5.33817]
[1743181609043,5.33825,1873.3,1873.0,6.1094]
[1743181609456,5.33825,1873.3,1873.0,10.67787]
[1743181609758,5.33825,1873.3,1873.0,5.33887]
[1743181610120,12.46612951,1873.4,1873.1,5.33872]
[1743181610819,7.12808951,1873.4,1873.1,5.33863]
[1743181611019,7.12808951,1873.4,1873.2,5.33843]
[1743181611622,7.12808951,1873.4,1873.3,5.33817]
[1743181611935,7.12808951,1873.4,1873.2,5.33834]
[1743181612140,12.46598951,1873.4,1873.1,5.33863]
[1743181612343,12.46599951,1873.4,1873.1,5.33863]
[1743181612732,12.46599951,1873.4,1873.0,5.33902]
[1743181612733,5.33818,1873.3,1873.0,5.33902]
[1743181613249,17.80408951,1873.4,1873.0,10.67784]
[1743181613569,12.46601951,1873.4,1873.0,10.67784]
[1743181613739,5.33827,1873.3,1873.0,5.33882]
[1743181614047,3.85581591,1873.3,1872.7,0.817]
[1743181614274,5.3389,1873.1,1872.7,6.15667]
[1743181614422,15.93781,1873.1,1872.7,11.4964]
[1743181614623,5.26,1873.1,1872.8,5.33956]
[1743181614947,5.26,1873.1,1872.8,5.33945]
[1743181615250,5.26,1873.1,1872.9,5.33928]
[1743181615551,5.26,1873.1,1872.8,5.33945]
[1743181615552,10.59884,1873.1,1872.8,5.33945]
[1743181615746,15.9378,1873.1,1872.7,6.15678]
[1743181615953,5.33904,1873.0,1872.7,9.15678]
[1743181616159,10.59884,1873.1,1872.7,9.15668]
[1743181616546,10.59884,1873.1,1872.8,5.33959]
[1743181617151,10.59884,1873.1,1872.7,9.15668]
[1743181617330,5.33905,1873.0,1872.7,14.4964]
[1743181620138,1.07207486,1872.9,1872.8,5.33959]
[1743181620338,1.07207486,1872.9,1872.8,6.489214]
[1743181621448,1.07207486,1872.9,1872.7,6.15665]
[1743181622126,5.34002,1872.7,1872.3,5.34096]
[1743181622325,16.6600023,1872.7,1872.4,5.34071]
[1743181622534,11.3199823,1872.7,1872.5,5.34023]
[1743181622744,11.3199823,1872.7,1872.6,6.10936]
[1743181623339,6.0599823,1873.1,1873.0,6.16112]
[1743181623540,28.263,1873.2,1873.1,5.33874]
[1743181624262,28.263,1873.2,1873.1,9.09154]
[1743181624460,6.0599823,1873.5,1873.4,6.13328]
[1743181624653,5.338,1873.4,1873.0,5.33901]
[1743181624850,10.59832,1873.3,1873.0,0.7954]
[1743181625051,5.33858,1873.2,1872.9,5.3393]
[1743181625255,6.0599823,1873.2,1872.8,0.8073]
[1743181625457,5.33885,1873.1,1872.7,5.33986]
[1743181625762,16.7378023,1873.1,1872.7,5.33986]
[1743181626180,5.33914,1873.0,1872.7,5.33985]
[1743181626550,5.259,1872.9,1872.5,5.34043]
[1743181626734,15.93808,1872.9,1872.5,8.34043]
[1743181627136,5.34005,1872.7,1872.4,0.7637]
[1743181627332,5.34005,1872.7,1872.2,5.34126]
[1743181627333,28.263,1872.8,1872.2,0.7909]
[1743181627561,28.263,1872.8,1872.6,5.3401]
[1743181628066,28.263,1872.8,1872.5,0.7966]
[1743181628369,28.263,1872.8,1872.6,5.34002]
[1743181628868,33.60264,1872.8,1872.5,6.13702]
[1743181629466,28.263,1872.8,1872.6,5.34013]
[1743181630074,28.263,1872.8,1872.6,5.34005]
[1743181630566,28.263,1872.8,1872.6,5.34]
[1743181631149,28.263,1872.8,1872.5,6.13702]
[1743181631352,5.33992,1872.7,1872.3,6.13067]
[1743181631542,5.33992,1872.7,1872.3,11.47152]
[1743181632357,5.33992,1872.7,1872.3,6.13055]
[1743181632567,5.33992,1872.7,1872.3,11.47143]
[1743181633058,16.7400023,1872.7,1872.3,6.13055]
[1743181633270,5.34062,1872.5,1872.1,6.16982]
[1743181633439,10.60062,1872.5,1872.2,5.34127]
[1743181633644,5.26,1872.5,1872.2,10.68241]
[1743181634142,5.26,1872.5,1872.2,5.34114]
[1743181634366,10.60056,1872.5,1872.1,11.51154]
[1743181634573,10.60056,1872.5,1872.2,5.34128]
[1743181634742,5.26,1872.5,1872.2,5.34128]
[1743181635242,10.60045,1872.5,1872.2,5.34128]
[1743181635472,5.26,1872.5,1872.2,5.34128]
[1743181635649,5.26,1872.5,1872.2,10.68241]
[1743181636072,5.26,1872.5,1872.2,5.34113]
[1743181636277,10.60061,1872.5,1872.1,6.17009]
[1743181636479,10.60061,1872.5,1872.1,0.8285]
[1743181636480,5.34084,1872.4,1872.1,0.8285]
[1743181636776,5.34084,1872.4,1872.1,0.05]
[1743181636946,5.34104,1872.3,1872.1,0.05]
[1743181637145,5.3413,1872.2,1872.1,0.05]
[1743181637343,15.25709821,1872.2,1872.1,0.05]
[1743181637789,11.4012823,1872.2,1872.1,0.05]
[1743181638576,15.25709821,1872.2,1872.1,0.05]
[1743181639381,15.80709821,1872.2,1872.1,0.05]
[1743181639548,18.80709821,1872.2,1872.1,0.05]
[1743181640168,18.80709821,1872.2,1872.1,1e-05]
[1743181641956,19.8769459,1872.2,1872.1,1e-05]
[1743181644892,25.1379459,1872.2,1872.1,1e-05]
[1743181645785,17.73212999,1872.2,1872.1,1e-05]
[1743181646389,21.5879459,1872.2,1872.1,1e-05]
[1743181647169,49.8679459,1872.2,1872.1,1e-05]
[1743181647369,46.01212999,1872.2,1872.1,1e-05]
[1743181648968,40.75112999,1872.2,1872.1,1e-05]
[1743181649170,40.67082999,1872.2,1872.1,1e-05]
[1743181649619,40.67082999,1872.2,1872.1,0.610408]
[1743181649916,40.67082999,1872.2,1872.1,1e-05]
[1743181650705,40.67082999,1872.2,1872.1,5.3416]
[1743181651279,35.40982999,1872.2,1872.1,5.3416]
[1743181651699,35.40982999,1872.2,1872.1,1e-05]
[1743181652303,35.40982999,1872.2,1872.1,5.3416]
[1743181652478,35.40982999,1872.2,1872.1,1e-05]
[1743181653272,40.75112999,1872.2,1872.1,1e-05]
[1743181654099,44.6069459,1872.2,1872.1,1e-05]
[1743181655682,47.6069459,1872.2,1872.1,1e-05]
[1743181656597,40.75112999,1872.2,1872.1,1e-05]
[1743181657907,44.6069459,1872.2,1872.1,1e-05]
[1743181658089,45.1569459,1872.2,1872.1,1e-05]
[1743181658410,48.1569459,1872.2,1872.1,1e-05]
[1743181663810,48.76229214,1872.2,1872.1,1e-05]
[1743181663985,53.19994718,1872.2,1872.1,1e-05]
[1743181664583,5.34416,1871.2,1871.1,0.1131755]
[1743181664816,10.60416,1871.2,1871.1,0.1131755]
[1743181665413,46.29297591,1871.2,1871.1,0.1131755]
[1743181665913,42.83821231,1871.2,1871.1,0.1131755]
[1743181668198,52.75401052,1871.2,1871.1,0.1131755]
[1743181668420,48.89819461,1871.2,1871.1,0.1131755]
[1743181668993,37.3429823,1871.2,1871.1,0.1131755]
[1743181669195,39.6039823,1871.2,1871.1,0.8994755]
[1743181669722,44.9481423,1871.2,1871.1,0.1131755]
[1743181670092,39.6039823,1871.2,1871.1,0.1131755]
[1743181670421,28.283,1871.2,1871.1,6.2089155]
[1743181670633,28.283,1871.2,1871.1,7.36425805]
[1743181670831,6.0599823,1871.5,1871.4,0.7513]
[1743181671895,6.0599823,1871.5,1871.4,6.09489]
[1743181672385,39.6099823,1871.9,1871.6,5.3429]
[1743181672591,1.06169742,1871.8,1871.7,0.7699]
[1743181673099,34.3489823,1871.9,1871.7,6.72391]
[1743181673415,34.3489823,1871.9,1871.8,5.34245]
[1743181673627,34.3489823,1871.9,1871.8,6.12245]
[1743181674923,28.289,1871.9,1871.8,6.12245]
[1743181675725,6.0599823,1872.2,1872.1,6.11359]
[1743181676019,16.6615923,1872.5,1872.1,6.11359]
[1743181676231,16.64743522,1872.5,1872.1,7.259125]
[1743181676521,16.64743522,1872.5,1872.1,7.258965]
[1743181676734,1.05894897,1872.4,1872.1,12.600395]
[1743181677390,1.05894897,1872.4,1872.2,5.34125]
[1743181677605,1.05894897,1872.4,1872.3,5.34102]
[1743181677838,1.05894897,1872.4,1872.3,1.875915]
[1743181678335,1.05894897,1872.4,1872.3,7.216935]
[1743181680434,6.0599823,1872.5,1872.3,7.216935]
[1743181680435,6.0599823,1872.5,1872.4,6.09933]
[1743181680635,6.0599823,1872.5,1872.4,0.7586]
[1743181681036,6.0599823,1872.5,1872.4,6.09933]
[1743181681211,6.0599823,1872.5,1872.4,7.3501635]
[1743181684113,6.0599823,1872.5,1872.1,10.68285]
[1743181684453,16.7411523,1872.5,1872.2,0.8037]
[1743181684758,11.4004823,1872.5,1872.2,0.8037]
[1743181685039,11.4004823,1872.5,1872.0,11.48564]
[1743181685247,11.4004823,1872.5,1872.1,5.34158]
[1743181685637,16.7411823,1872.5,1872.1,5.34158]
[1743181685823,5.34074,1872.4,1872.0,6.14377]
[1743181686441,5.34074,1872.4,1872.0,7.292309]
[1743181686646,1.06323716,1872.4,1872.1,5.34156]
[1743181686944,1.06323716,1872.4,1872.1,5.34141]
[1743181687150,1.06323716,1872.4,1872.1,10.68285]
[1743181687452,1.06323716,1872.4,1872.3,6.09872]
[1743181688248,1.06323716,1872.4,1872.3,0.7577]
[1743181688546,1.06323716,1872.4,1872.1,5.34153]
[1743181688761,1.06323716,1872.4,1872.1,6.09923]
[1743181688915,1.06323716,1872.4,1872.1,6.09907]
[1743181689510,1.06323716,1872.4,1872.2,5.34108]
[1743181690114,1.06323716,1872.4,1872.1,0.7577]
[1743181690318,5.34143,1872.2,1871.8,11.44149]
[1743181690536,10.68222,1872.3,1871.9,5.34215]
[1743181690730,10.68224,1872.3,1871.9,5.34215]
[1743181691340,5.34103,1872.3,1871.9,5.34215]
[1743181691656,12.46396946,1872.4,1872.0,5.34176]
[1743181691851,5.34113,1872.3,1871.9,10.68421]
[1743181692651,5.34113,1872.3,1872.0,5.34186]
[1743181693145,12.46400946,1872.4,1872.0,10.68348]
[1743181693351,7.12321946,1872.4,1872.1,5.34159]
[1743181693550,12.46397946,1872.4,1872.1,6.12949]
[1743181694254,12.46397946,1872.4,1872.1,0.7879]
[1743181694953,17.80492946,1872.4,1872.1,0.7879]
[1743181695154,5.3413,1872.2,1871.9,6.1542]
[1743181695355,5.34149,1872.2,1871.9,0.8121]
[1743181695557,10.683,1872.2,1871.9,0.8121]
[1743181695848,12.46398946,1872.4,1872.0,5.34178]
[1743181696062,17.80488946,1872.4,1872.0,5.34178]
[1743181696419,5.34107,1872.3,1871.9,0.8121]
[1743181696654,5.34141,1872.2,1871.9,0.8121]
[1743181697353,11.4007523,1872.4,1872.0,5.34178]
[1743181697550,16.6577523,1872.4,1872.1,5.34158]
[1743181697725,1.07921338,1872.3,1872.0,5.34178]
[1743181697922,6.42025338,1872.3,1872.0,5.34178]
[1743181698235,6.42025338,1872.3,1871.9,12.645721]
[1743181698547,6.42025338,1872.3,1871.9,7.303691]
[1743181698862,5.34131,1872.2,1871.9,7.303691]
[1743181699024,5.34131,1872.2,1871.9,0.8121]
[1743181699657,4.07921338,1872.3,1871.7,0.7787]
[1743181699951,5.34277,1871.7,1871.3,6.12238]
[1743181700162,16.7456523,1871.7,1871.3,6.12238]
[1743181700356,16.7456523,1871.7,1871.3,7.269033]
[1743181700357,11.4027523,1871.7,1871.3,7.269033]
[1743181700545,16.7456923,1871.7,1871.3,7.269033]
[1743181700746,16.7456623,1871.7,1871.3,7.269033]
[1743181701425,11.4027523,1871.7,1871.3,7.269033]
[1743181701729,6.0599823,1871.7,1871.4,5.34348]
[1743181701950,6.0599823,1871.7,1871.4,11.9481613]
[1743181702144,6.0599823,1871.7,1871.5,5.3433]
[1743181702429,6.0599823,1871.7,1871.5,5.3432]
[1743181702825,6.0599823,1871.7,1871.4,6.6047313]
[1743181703025,6.0599823,1871.7,1871.4,5.34346]
[1743181703253,11.4027423,1871.7,1871.3,6.12255]
[1743181703663,11.4027423,1871.7,1871.3,11.46628]
[1743181703837,6.0599823,1871.7,1871.4,5.34332]
[1743181704045,6.0599823,1871.7,1871.5,5.34325]
[1743181704424,6.0599823,1871.7,1871.4,5.34332]
[1743181704660,7.11564859,1871.7,1871.4,10.6868]
[1743181704829,7.11564859,1871.7,1871.4,11.83335]
[1743181705168,12.45844859,1871.7,1871.3,11.46632]
[1743181705470,17.80134859,1871.7,1871.3,6.12248]
[1743181705778,7.11564859,1871.7,1871.4,5.34342]
[1743181706171,12.45846859,1871.7,1871.4,5.34342]
[1743181706391,17.80140859,1871.7,1871.3,6.1225]
[1743181706528,12.45846859,1871.7,1871.3,6.71987753]
[1743181706728,12.45846859,1871.7,1871.3,12.06359753]
[1743181706974,12.45846859,1871.7,1871.3,6.71979753]
[1743181707770,5.34307,1871.6,1871.3,0.7787]
[1743181709352,17.80140859,1871.7,1871.3,6.1224]
[1743181709533,17.80140859,1871.7,1871.3,0.7787]
[1743181709534,5.34302,1871.6,1871.3,0.7787]
[1743181709729,11.4030123,1871.6,1871.1,0.9399755]
[1743181709973,5.34416,1871.2,1871.1,0.1131755]
[1743181710175,11.4041423,1871.2,1871.1,0.1131755]
[1743181710954,6.0599823,1871.2,1871.1,0.1131755]
[1743181711483,6.0599823,1871.2,1871.1,6.00340405]
[1743181711669,6.0599823,1871.2,1871.1,6.81720405]
[1743181712989,6.0599823,1871.2,1871.1,1.47276405]
[1743181713139,6.0599823,1871.2,1871.1,0.9269755]
[1743181714130,6.0599823,1871.2,1871.1,6.2714155]
[1743181715996,6.0599823,1871.2,1871.1,0.9269755]
[1743181716164,6.0599823,1871.2,1871.1,0.1131755]
[1743181717062,6.0599823,1871.2,1871.1,5.4576155]
[1743181717277,6.0599823,1871.2,1871.1,6.53783405]
[1743181717583,6.0599823,1871.2,1871.1,7.32233405]
[1743181717990,6.0599823,1871.2,1871.1,6.2421155]
[1743181719490,6.0599823,1871.2,1871.1,0.8976755]
[1743181719686,6.0599823,1871.2,1871.1,0.1131755]
[1743181721060,11.4041423,1871.2,1871.1,0.1131755]
[1743181722623,11.9541423,1871.2,1871.1,0.1131755]
[1743181722776,11.4041423,1871.2,1871.1,0.1131755]
[1743181727909,16.6621423,1871.2,1871.1,0.1131755]
[1743181729705,11.3179823,1871.2,1871.1,0.1131755]
[1743181730630,6.0599823,1871.2,1871.1,0.1131755]
[1743181730943,28.29,1871.5,1871.3,6.09868]
[1743181731091,28.29,1871.5,1871.4,6.708458]
[1743181731289,6.0599823,1871.9,1871.8,6.09745]
[1743181731505,6.0599823,1871.9,1871.6,5.34291]
[1743181731707,11.4021723,1871.9,1871.6,0.7764]
[1743181732111,11.4021723,1871.9,1871.6,6.11933]
[1743181732312,6.0599823,1871.9,1871.6,6.11933]
[1743181732826,6.0599823,1871.9,1871.7,5.34273]
[1743181733015,6.0599823,1871.9,1871.7,11.831475]
[1743181733730,6.0599823,1871.9,1871.7,6.488745]
[1743181734427,6.0599823,1871.9,1871.8,5.34245]
[1743181734623,6.0599823,1871.9,1871.8,6.15605]
[1743181735795,34.3539823,1872.2,1871.9,5.3421]
[1743181736098,39.6954223,1872.2,1871.8,11.4984]
[1743181736304,5.3419,1872.0,1871.7,5.3427]
[1743181736494,10.68405,1872.0,1871.6,6.16969]
[1743181737321,5.3419,1872.0,1871.7,5.34271]
[1743181737899,11.6476547,1872.1,1871.8,5.34235]
[1743181738099,6.3060447,1872.1,1871.8,5.3423]
[1743181738295,11.6476547,1872.1,1871.8,5.3423]
[1743181738495,16.9894547,1872.1,1871.7,5.3427]
[1743181738722,5.34228,1871.9,1871.6,0.8268]
[1743181738927,3.85581591,1871.9,1871.4,0.7716]
[1743181739128,5.34304,1871.6,1871.4,0.7716]
[1743181739422,5.34304,1871.6,1871.3,5.34376]
[1743181739423,10.59904,1871.6,1871.3,5.34386]
[1743181739925,5.256,1871.6,1871.3,10.68772]
[1743181740300,5.256,1871.6,1871.5,5.3433]
[1743181740499,6.0599823,1871.8,1871.7,5.34273]
[1743181741532,6.0599823,1871.8,1871.7,6.14053]
[1743181746836,6.0599823,1871.8,1871.7,5.34273]
[1743181747837,6.0599823,1871.8,1871.6,5.3429]
[1743181748032,6.0599823,1871.8,1871.6,5.34289]
[1743181748239,6.0599823,1871.8,1871.7,5.34273]
[1743181748533,6.0599823,1871.8,1871.7,6.14413]
[1743181749624,6.0599823,1871.8,1871.7,6.19755004]
[1743181749937,6.0599823,1871.8,1871.7,6.14413]
[1743181750437,33.549,1872.2,1871.9,10.684]
[1743181750632,5.3417,1872.1,1871.8,5.34239]
[1743181751830,5.3417,1872.1,1871.7,6.1441]
[1743181752434,29.33583868,1872.3,1872.1,5.34144]
[1743181753538,29.33583868,1872.3,1872.0,5.34159]
[1743181753721,34.67692868,1872.3,1872.0,5.34159]
[1743181753923,34.67692868,1872.3,1871.9,6.10544]
[1743181754243,40.01816868,1872.3,1871.9,6.10544]
[1743181754439,6.0599823,1872.2,1871.7,6.11335]
[1743181754645,16.6553223,1872.2,1871.8,5.34229]
[1743181754808,5.34162,1872.1,1871.8,5.34229]
[1743181755012,5.34162,1872.1,1871.7,6.11343]
[1743181755235,5.34162,1872.1,1871.5,5.34327]
[1743181755236,5.3424,1871.9,1871.5,6.10917]
[1743181755436,5.34253,1871.8,1871.4,10.68702]
[1743181755620,5.34276,1871.7,1871.4,5.34346]
[1743181756134,15.93914,1871.8,1871.4,10.68692]
[1743181756312,10.59653,1871.8,1871.5,5.34329]
[1743181756928,5.254,1871.8,1871.6,5.34284]
[1743181757615,5.254,1871.8,1871.7,5.34273]
[1743181758017,6.0599823,1871.9,1871.8,5.34245]
[1743181759154,6.0599823,1871.9,1871.8,6.13745]
[1743181759328,6.0599823,1871.9,1871.8,6.19086859]
[1743181759523,6.0599823,1871.9,1871.8,7.34422845]
[1743181759829,6.0599823,1871.9,1871.8,7.29080986]
[1743181760613,34.58561452,1872.3,1872.2,5.3413]
[1743181760845,29.33161452,1872.3,1872.2,5.3413]
[1743181761052,28.282,1872.3,1872.2,6.1499]
[1743181761235,28.282,1872.3,1872.2,7.299023]
[1743181761414,28.282,1872.3,1872.0,5.34185]
[1743181761619,5.34153,1872.2,1871.8,5.34243]
[1743181761838,5.34165,1872.1,1871.8,5.34243]
[1743181762040,28.282,1872.3,1871.9,5.34189]
[1743181762041,33.62302,1872.3,1871.9,5.34189]
[1743181762244,28.282,1872.3,1871.8,0.8086]
[1743181762445,28.282,1872.3,1872.1,6.17277]
[1743181762763,28.282,1872.3,1872.1,5.34145]
[1743181762929,28.282,1872.3,1872.0,5.34175]
[1743181763127,33.62317,1872.3,1871.9,6.17344]
[1743181763426,33.62317,1872.3,1872.0,5.34186]
[1743181763632,28.282,1872.3,1872.0,10.68358]
[1743181763880,28.282,1872.3,1872.0,5.34172]
[1743181764220,33.62305,1872.3,1872.0,5.34172]
[1743181764730,38.96432,1872.3,1871.9,5.34212]
[1743181764925,33.62305,1872.3,1872.0,5.34187]
[1743181766848,28.282,1872.3,1872.0,5.34187]
[1743181767161,28.282,1872.3,1872.0,10.68357]
[1743181767655,38.96439,1872.3,1871.9,5.34202]
[1743181767860,28.282,1872.3,1872.1,5.3415]
[1743181769285,28.282,1872.3,1872.0,5.34179]
[1743181769580,5.34141,1872.2,1871.9,5.34211]
[1743181769738,5.34141,1872.2,1871.9,10.68415]
[1743181769941,33.62327,1872.3,1872.0,5.34186]
[1743181770358,33.62321,1872.3,1871.9,5.34204]
[1743181770573,33.6232,1872.3,1872.0,5.34181]
[1743181770982,33.62319,1872.3,1872.0,5.34181]
[1743181772366,5.34143,1872.2,1871.8,6.17372]
[1743181772564,5.34161,1872.1,1871.8,11.516]
[1743181772864,5.34143,1872.2,1871.8,11.516]
[1743181773072,5.34161,1872.1,1871.8,6.17358]
[1743181773267,5.34143,1872.2,1871.8,11.51578]
[1743181773581,5.34143,1872.2,1871.9,5.34214]
[1743181773747,5.34143,1872.2,1871.8,11.51583]
[1743181773932,5.34143,1872.2,1871.9,5.34214]
[1743181774462,10.6829,1872.2,1871.9,5.34214]
[1743181774632,5.34143,1872.2,1871.8,11.51583]
[1743181774838,5.34208,1872.0,1871.5,5.34321]
[1743181775172,5.34208,1872.0,1871.4,6.09592]
[1743181775173,5.34227,1871.9,1871.6,10.68586]
[1743181775372,5.34202,1872.0,1871.7,5.34272]
[1743181775537,10.68405,1872.0,1871.6,5.34288]
[1743181775741,10.68405,1872.0,1871.6,10.68578]
[1743181775942,10.68405,1872.0,1871.6,5.34288]
[1743181776144,5.34218,1871.9,1871.6,5.34288]
[1743181776543,5.34218,1871.9,1871.5,5.34316]
[1743181776753,5.34218,1871.9,1871.5,10.68632]
[1743181776940,5.34218,1871.9,1871.5,11.830192]
[1743181777581,10.68451,1871.9,1871.5,6.487032]
[1743181777767,5.34218,1871.9,1871.5,11.830202]
[1743181778245,5.34218,1871.9,1871.6,5.34298]
[1743181779667,5.34246,1871.8,1871.5,6.487032]
[1743181779842,5.34218,1871.9,1871.6,5.34295]
[1743181780043,5.34189,1872.0,1871.7,5.34271]
[1743181780476,5.34189,1872.0,1871.6,10.68585]
[1743181780679,5.34189,1872.0,1871.7,5.34273]
[1743181780865,10.68393,1872.0,1871.6,10.68572]
[1743181781059,5.34189,1872.0,1871.6,6.5257792]
[1743181781277,12.46126524,1872.1,1871.7,5.34252]
[1743181781578,7.11964524,1872.1,1871.8,0.7835]
[1743181782075,7.11964524,1872.1,1871.9,5.34207]
[1743181782447,12.46124524,1872.1,1871.7,6.10028]
[1743181782638,12.46124524,1872.1,1871.7,6.10026]
[1743181782843,12.46124524,1872.1,1871.7,11.4429]
[1743181783076,12.46124524,1872.1,1871.7,12.58717]
[1743181783372,12.46124524,1872.1,1871.7,12.58718]
[1743181784071,12.46124524,1872.1,1871.7,12.58714]
[1743181784244,12.46124524,1872.1,1871.7,5.34256]
[1743181784445,12.46124524,1872.1,1871.8,5.34244]
[1743181784645,17.80305524,1872.1,1871.7,5.34256]
[1743181784970,5.34202,1872.0,1871.6,5.34291]
[1743181785471,5.34202,1872.0,1871.7,5.3427]
[1743181785675,5.3422,1871.9,1871.6,5.34291]
[1743181785850,5.34282,1871.7,1871.4,6.1112]
[1743181786059,5.34313,1871.6,1871.2,6.14586]
[1743181786451,5.34275,1871.7,1871.3,5.34371]
[1743181786774,5.34247,1871.8,1871.5,5.34317]
[1743181787071,5.34247,1871.8,1871.5,6.08208801]
[1743181788156,6.39337575,1871.8,1871.5,6.08208801]
[1743181788878,1.05090575,1871.8,1871.5,11.42518801]
[1743181789178,6.0599823,1871.9,1871.7,5.34273]
[1743181789575,6.0599823,1871.9,1871.6,10.68566]
[1743181789748,6.0599823,1871.9,1871.6,6.5640278]
[1743181790178,11.4022623,1871.9,1871.6,5.34276]
[1743181790566,6.0599823,1871.9,1871.7,5.3427]
[1743181791364,6.0599823,1871.9,1871.7,5.34256]
[1743181791571,6.0599823,1871.9,1871.7,10.68509]
[1743181791767,6.0599823,1871.9,1871.8,6.410959]
[1743181791973,6.0599823,1871.9,1871.8,7.173559]
[1743181792172,6.0599823,1871.9,1871.8,1.831109]
[1743181792367,6.0599823,1871.9,1871.8,1.068509]
[1743181792890,6.0599823,1871.9,1871.8,6.410959]
[1743181795287,6.0599823,1871.9,1871.8,7.194159]
[1743181797277,28.281,1872.1,1872.0,5.34188]
[1743181798395,28.281,1872.1,1871.9,5.34204]
[1743181798566,28.281,1872.1,1871.8,6.12553]
[1743181799193,33.62268,1872.1,1871.8,6.12553]
[1743181799501,28.281,1872.1,1871.9,5.34213]
[1743181799895,28.281,1872.1,1872.0,5.34188]
[1743181800199,1.09805559,1872.2,1872.0,5.34188]
[1743181800697,1.09805559,1872.2,1872.0,5.34185]
[1743181801779,1.09805559,1872.2,1872.0,5.34173]
[1743181802196,1.09805559,1872.2,1872.0,5.34171]
[1743181802582,39.5919823,1872.4,1872.1,5.34139]
[1743181802798,39.5919823,1872.4,1872.2,5.34113]
[1743181804072,39.5919823,1872.4,1872.2,10.68228]
[1743181804376,35.42898469,1872.4,1872.2,5.34107]
[1743181804585,35.42898469,1872.4,1872.3,5.34102]
[1743181805369,35.42898469,1872.4,1872.2,10.68227]
[1743181805672,35.42898469,1872.4,1872.2,5.34107]
[1743181806300,35.42898469,1872.4,1872.3,5.34102]
[1743181807304,35.42898469,1872.4,1872.2,5.34107]
[1743181807800,49.49708477,1872.4,1872.0,5.34178]
[1743181808004,44.15619477,1872.4,1872.0,10.68351]
[1743181808304,40.76982469,1872.4,1872.0,10.68351]
[1743181809201,40.76982469,1872.4,1872.1,5.34156]
[1743181809599,46.11074469,1872.4,1872.0,10.68345]
[1743181809897,40.76982469,1872.4,1872.0,5.34172]
[1743181810097,5.34103,1872.3,1872.0,5.34172]
[1743181810426,40.76982469,1872.4,1871.7,6.1351]
[1743181810427,5.3417,1872.1,1871.7,6.1351]
[1743181810622,5.34188,1872.0,1871.6,5.34296]
[1743181810780,5.34188,1872.0,1871.1,5.4576155]
[1743181810781,10.68525,1871.8,1871.4,5.34337]
[1743181810975,10.68525,1871.8,1871.4,11.300437]
[1743181810976,5.3426,1871.8,1871.4,11.300437]
[1743181811220,5.34273,1871.7,1871.4,5.956967]
[1743181811507,5.3422,1871.9,1871.4,0.613597]
[1743181811677,5.3422,1871.9,1871.5,5.34302]